[Event "Chess Festival Groningen 2023 | A"]
[Site "Groningen, Netherlands"]
[Date "2023.12.23"]
[Round "3.11"]
[White "Kovchan, Alexander"]
[Black "Mierins, Emils Janis"]
[Result "1-0"]
[TimeControl "90min/40moves + 30min + 30sec/move"]
[WhiteElo "2491"]
[BlackElo "2258"]

1. e4 {[%clk 01:30:49]} {[%emt 00:00:10]} c5 {[%clk 01:30:53]} {[%emt
00:00:07]} 2. Nf3 {[%clk 01:31:10]} {[%emt 00:00:08]} e6 {[%clk 01:31:17]}
{[%emt 00:00:07]} 3. d4 {[%clk 01:31:31]} {[%emt 00:00:10]} cxd4 {[%clk
01:31:42]} {[%emt 00:00:05]} 4. Nxd4 {[%clk 01:31:53]} {[%emt 00:00:07]} Nf6
{[%clk 01:32:08]} {[%emt 00:00:04]} 5. Nc3 {[%clk 01:32:16]} {[%emt 00:00:07]}
Nc6 {[%clk 01:32:34]} {[%emt 00:00:04]} 6. a3 {[%clk 01:32:34]} {[%emt
00:00:12]} Qc7 {[%clk 01:32:50]} {[%emt 00:00:13]} 7. Be3 {[%clk 01:32:35]}
{[%emt 00:00:29]} a6 {[%clk 01:33:15]} {[%emt 00:00:06]} 8. f4 {[%clk
01:32:44]} {[%emt 00:00:20]} d6 {[%clk 01:32:51]} {[%emt 00:00:55]} 9. Qf3
{[%clk 01:32:11]} {[%emt 00:01:02]} Bd7 {[%clk 01:29:47]} {[%emt 00:03:35]} 10.
O-O-O {[%clk 01:31:36]} {[%emt 00:01:04]} Nxd4 {[%clk 01:15:48]} {[%emt
00:14:29]} 11. Bxd4 {[%clk 01:29:56]} {[%emt 00:02:10]} e5 {[%clk 01:10:53]}
{[%emt 00:05:25]} 12. fxe5 {[%clk 01:29:47]} {[%emt 00:00:40]} dxe5 {[%clk
01:06:38]} {[%emt 00:04:45]} 13. Qg3 {[%clk 01:30:01]} {[%emt 00:00:15]} Bd6
{[%clk 01:01:06]} {[%emt 00:06:03]} 14. Qxg7 {[%clk 01:28:52]} {[%emt
00:01:39]} O-O-O {[%clk 00:58:39]} {[%emt 00:02:57]} 15. Qxf6 {[%clk 01:27:05]}
{[%emt 00:02:17]} exd4 {[%clk 00:59:03]} {[%emt 00:00:05]} 16. Nd5 {[%clk
01:27:00]} {[%emt 00:00:35]} Qc6 {[%clk 00:58:19]} {[%emt 00:01:14]} 17. Rxd4
{[%clk 01:26:09]} {[%emt 00:01:21]} Bc5 {[%clk 00:58:02]} {[%emt 00:00:47]} 18.
Rc4 {[%clk 01:25:35]} {[%emt 00:01:04]} 1-0

[Event "Chess Festival Groningen 2023 | A"]
[Site "Groningen, Netherlands"]
[Date "2023.12.23"]
[Round "3.12"]
[White "Besou, Hussain"]
[Black "Lahaye, Rick"]
[Result "0-1"]
[TimeControl "90min/40moves + 30min + 30sec/move"]
[WhiteElo "2280"]
[BlackElo "2439"]

1. e4 {[%clk 01:30:58]} {[%emt 00:00:01]} c5 {[%clk 01:30:42]} {[%emt
00:00:18]} 2. Nf3 {[%clk 01:31:19]} {[%emt 00:00:08]} d6 {[%clk 01:31:06]}
{[%emt 00:00:08]} 3. d4 {[%clk 01:31:41]} {[%emt 00:00:08]} cxd4 {[%clk
01:31:29]} {[%emt 00:00:07]} 4. Nxd4 {[%clk 01:32:00]} {[%emt 00:00:10]} Nf6
{[%clk 01:31:52]} {[%emt 00:00:08]} 5. Nc3 {[%clk 01:32:23]} {[%emt 00:00:07]}
Bd7 {[%clk 01:32:04]} {[%emt 00:00:19]} 6. Bg5 {[%clk 01:31:58]} {[%emt
00:00:54]} e6 {[%clk 01:32:06]} {[%emt 00:00:28]} 7. Qd2 {[%clk 01:32:06]}
{[%emt 00:00:22]} a6 {[%clk 01:32:21]} {[%emt 00:00:17]} 8. O-O-O {[%clk
01:32:27]} {[%emt 00:00:07]} h6 {[%clk 01:32:39]} {[%emt 00:00:13]} 9. Bxf6
{[%clk 01:31:06]} {[%emt 00:01:49]} Qxf6 {[%clk 01:32:37]} {[%emt 00:00:33]} 10.
f4 {[%clk 01:31:20]} {[%emt 00:00:16]} Nc6 {[%clk 01:25:56]} {[%emt 00:07:12]}
11. Nf3 {[%clk 01:30:24]} {[%emt 00:01:25]} Qd8 {[%clk 01:26:19]} {[%emt
00:00:06]} 12. g4 {[%clk 01:22:28]} {[%emt 00:08:25]} Qc7 {[%clk 01:18:45]}
{[%emt 00:08:05]} 13. h4 {[%clk 01:19:30]} {[%emt 00:03:24]} O-O-O {[%clk
01:18:30]} {[%emt 00:00:49]} 14. Bd3 {[%clk 01:13:27]} {[%emt 00:06:33]} Kb8
{[%clk 01:14:04]} {[%emt 00:04:55]} 15. g5 {[%clk 01:09:10]} {[%emt 00:04:46]}
Nb4 {[%clk 01:05:41]} {[%emt 00:08:54]} 16. Kb1 {[%clk 01:02:27]} {[%emt
00:07:12]} hxg5 {[%clk 00:56:07]} {[%emt 00:10:05]} 17. hxg5 {[%clk 01:01:55]}
{[%emt 00:01:02]} Rxh1 {[%clk 00:56:31]} {[%emt 00:00:05]} 18. Rxh1 {[%clk
01:02:17]} {[%emt 00:00:08]} d5 {[%clk 00:56:41]} {[%emt 00:00:21]} 19. e5
{[%clk 00:40:25]} {[%emt 00:22:21]} Qb6 {[%clk 00:50:41]} {[%emt 00:06:30]} 20.
Ne2 {[%clk 00:33:08]} {[%emt 00:07:46]} Bc5 {[%clk 00:48:50]} {[%emt 00:02:21]}
21. Rh7 {[%clk 00:27:07]} {[%emt 00:06:30]} Be3 {[%clk 00:48:10]} {[%emt
00:01:11]} 22. Qd1 {[%clk 00:27:22]} {[%emt 00:00:14]} Nxd3 {[%clk 00:30:21]}
{[%emt 00:18:20]} 23. Qxd3 {[%clk 00:23:45]} {[%emt 00:04:06]} Bb5 {[%clk
00:30:36]} {[%emt 00:00:16]} 24. Qd1 {[%clk 00:24:09]} {[%emt 00:00:05]} d4
{[%clk 00:30:43]} {[%emt 00:00:24]} 25. Ne1 {[%clk 00:24:13]} {[%emt 00:00:25]}
Bxe2 {[%clk 00:24:02]} {[%emt 00:07:12]} 26. Qxe2 {[%clk 00:24:36]} {[%emt
00:00:06]} d3 {[%clk 00:24:24]} {[%emt 00:00:09]} 27. Nxd3 {[%clk 00:24:21]}
{[%emt 00:00:44]} Bxf4 {[%clk 00:24:49]} {[%emt 00:00:05]} 28. Qf1 {[%clk
00:20:53]} {[%emt 00:03:57]} Rxd3 {[%clk 00:19:49]} {[%emt 00:05:31]} 29. cxd3
{[%clk 00:21:08]} {[%emt 00:00:15]} Bxe5 {[%clk 00:20:16]} {[%emt 00:00:03]} 30.
Qg2 {[%clk 00:20:44]} {[%emt 00:00:52]} Qe3 {[%clk 00:19:33]} {[%emt 00:01:14]}
31. Qc2 {[%clk 00:15:25]} {[%emt 00:05:48]} Bf4 {[%clk 00:15:10]} {[%emt
00:04:54]} 32. a3 {[%clk 00:15:02]} {[%emt 00:00:53]} Qg1+ {[%clk 00:15:32]}
{[%emt 00:00:08]} 33. Ka2 {[%clk 00:15:27]} {[%emt 00:00:05]} Qxg5 {[%clk
00:15:57]} {[%emt 00:00:06]} 34. Qc4 {[%clk 00:14:41]} {[%emt 00:01:15]} Be3
{[%clk 00:11:34]} {[%emt 00:04:53]} 35. Rh8+ {[%clk 00:10:05]} {[%emt
00:05:05]} Ka7 {[%clk 00:12:03]} {[%emt 00:00:02]} 36. Rf8 {[%clk 00:10:27]}
{[%emt 00:00:08]} Qe7 {[%clk 00:12:18]} {[%emt 00:00:16]} 37. Qc8 {[%clk
00:10:20]} {[%emt 00:00:36]} Bg5 {[%clk 00:07:31]} {[%emt 00:05:17]} 38. Qb8+
{[%clk 00:05:24]} {[%emt 00:05:26]} Kb6 {[%clk 00:07:56]} {[%emt 00:00:05]} 39.
Rc8 {[%clk 00:05:46]} {[%emt 00:00:08]} Qd7 {[%clk 00:05:22]} {[%emt 00:03:04]}
40. Rc3 {[%clk 00:05:32]} {[%emt 00:00:43]} Bf6 {[%clk 00:05:25]} {[%emt
00:00:28]} 41. Rb3+ {[%clk 00:05:15]} {[%emt 00:00:47]} Kc6 {[%clk 00:05:21]}
{[%emt 00:00:34]} 42. Qf4 {[%clk 00:03:02]} {[%emt 00:02:43]} Qd5 {[%clk
00:04:09]} {[%emt 00:01:42]} 43. Qb8 {[%clk 00:20:48]} {[%emt 00:12:44]} Qd7
{[%clk 00:30:27]} {[%emt 00:04:13]} 44. Rb4 {[%clk 00:18:11]} {[%emt 00:03:06]}
b5 {[%clk 00:28:13]} {[%emt 00:02:44]} 45. Rb3 {[%clk 00:13:29]} {[%emt
00:05:12]} Qc7 {[%clk 00:16:11]} {[%emt 00:12:33]} 46. Qa8+ {[%clk 00:11:47]}
{[%emt 00:02:11]} Qb7 {[%clk 00:16:10]} {[%emt 00:00:31]} 47. Qf8 {[%clk
00:08:03]} {[%emt 00:04:13]} a5 {[%clk 00:09:36]} {[%emt 00:07:06]} 48. Qh8
{[%clk 00:06:38]} {[%emt 00:01:54]} Kb6 {[%clk 00:08:55]} {[%emt 00:01:12]} 49.
Qe8 {[%clk 00:04:10]} {[%emt 00:03:03]} Qd5 {[%clk 00:08:20]} {[%emt 00:00:59]}
50. Qb8+ {[%clk 00:03:35]} {[%emt 00:01:05]} Ka6 {[%clk 00:08:43]} {[%emt
00:00:06]} 51. a4 {[%clk 00:03:59]} {[%emt 00:00:06]} b4 {[%clk 00:08:54]}
{[%emt 00:00:19]} 52. Qc7 {[%clk 00:02:41]} {[%emt 00:01:48]} Bd4 {[%clk
00:08:43]} {[%emt 00:00:42]} 53. Qc8+ {[%clk 00:02:42]} {[%emt 00:00:29]} Kb6
{[%clk 00:08:15]} {[%emt 00:00:58]} 54. Qb8+ {[%clk 00:02:57]} {[%emt
00:00:15]} Kc6 {[%clk 00:07:49]} {[%emt 00:00:56]} 55. Qe8+ {[%clk 00:02:13]}
{[%emt 00:01:13]} Kd6 {[%clk 00:07:11]} {[%emt 00:01:08]} 56. Qxf7 {[%clk
00:02:23]} {[%emt 00:00:20]} g5 {[%clk 00:07:25]} {[%emt 00:00:16]} 57. Qg8
{[%clk 00:01:55]} {[%emt 00:00:58]} Ke7 {[%clk 00:06:44]} {[%emt 00:01:11]} 58.
Qg6 {[%clk 00:01:44]} {[%emt 00:00:41]} Qf5 {[%clk 00:03:55]} {[%emt 00:03:20]}
59. Qh5 {[%clk 00:01:21]} {[%emt 00:00:52]} g4 {[%clk 00:03:36]} {[%emt
00:00:49]} 60. Qh2 {[%clk 00:01:17]} {[%emt 00:00:34]} Kf7 {[%clk 00:03:38]}
{[%emt 00:00:28]} 61. Qc7+ {[%clk 00:01:31]} {[%emt 00:00:15]} Kg6 {[%clk
00:03:46]} {[%emt 00:00:22]} 62. Qd6 {[%clk 00:01:06]} {[%emt 00:00:56]} Qd5
{[%clk 00:03:25]} {[%emt 00:00:50]} 63. Qf4 {[%clk 00:01:10]} {[%emt 00:00:25]}
Kh5 {[%clk 00:03:32]} {[%emt 00:00:24]} 64. Qh2+ {[%clk 00:01:29]} {[%emt
00:00:11]} Kg5 {[%clk 00:03:47]} {[%emt 00:00:15]} 65. Qd2+ {[%clk 00:01:53]}
{[%emt 00:00:06]} Kf5 {[%clk 00:03:33]} {[%emt 00:00:44]} 66. Qh2 {[%clk
00:01:27]} {[%emt 00:00:56]} e5 {[%clk 00:03:33]} {[%emt 00:00:30]} 67. Qh5+
{[%clk 00:01:29]} {[%emt 00:00:28]} Kf4 {[%clk 00:03:50]} {[%emt 00:00:13]} 68.
Qh2+ {[%clk 00:01:48]} {[%emt 00:00:10]} g3 {[%clk 00:03:46]} {[%emt 00:00:35]}
69. Qh4+ {[%clk 00:01:30]} {[%emt 00:00:47]} Kf3 {[%clk 00:03:44]} {[%emt
00:00:33]} 70. Qh5+ {[%clk 00:01:34]} {[%emt 00:00:25]} Kf2 {[%clk 00:03:54]}
{[%emt 00:00:20]} 71. Qh4 {[%clk 00:01:23]} {[%emt 00:00:41]} Qf7 {[%clk
00:03:35]} {[%emt 00:00:50]} 72. Qg5 {[%clk 00:01:20]} {[%emt 00:00:33]} g2
{[%clk 00:03:36]} {[%emt 00:00:29]} 73. Qd2 {[%clk 00:00:52]} {[%emt 00:00:57]}
Kf3 {[%clk 00:03:57]} {[%emt 00:00:09]} 74. Qd1+ {[%clk 00:00:46]} {[%emt
00:00:37]} Kg3 {[%clk 00:04:16]} {[%emt 00:00:11]} 75. Qe2 {[%clk 00:00:58]}
{[%emt 00:00:18]} Qf1 {[%clk 00:02:52]} {[%emt 00:01:53]} 0-1

[Event "Chess Festival Groningen 2023 | A"]
[Site "Groningen, Netherlands"]
[Date "2023.12.23"]
[Round "3.13"]
[White "Toktomushev, Teimur"]
[Black "Panda, Sambit"]
[Result "0-1"]
[TimeControl "90min/40moves + 30min + 30sec/move"]
[BlackFideId "25091794"]
[WhiteElo "2249"]
[BlackElo "2404"]

1. d4 {[%clk 01:30:57]} {[%emt 00:00:02]} Nf6 {[%clk 01:30:27]} {[%emt
00:00:34]} 2. c4 {[%clk 01:31:13]} {[%emt 00:00:14]} e6 {[%clk 01:30:41]}
{[%emt 00:00:16]} 3. Nf3 {[%clk 01:31:07]} {[%emt 00:00:35]} d5 {[%clk
01:30:55]} {[%emt 00:00:17]} 4. Nc3 {[%clk 01:31:26]} {[%emt 00:00:11]} h6
{[%clk 01:31:00]} {[%emt 00:00:25]} 5. Bf4 {[%clk 01:31:22]} {[%emt 00:00:33]}
Bd6 {[%clk 01:31:26]} {[%emt 00:00:05]} 6. Bxd6 {[%clk 01:31:31]} {[%emt
00:00:22]} Qxd6 {[%clk 01:31:49]} {[%emt 00:00:06]} 7. e3 {[%clk 01:31:32]}
{[%emt 00:00:29]} O-O {[%clk 01:32:11]} {[%emt 00:00:08]} 8. Rc1 {[%clk
01:28:24]} {[%emt 00:03:38]} Qe7 {[%clk 01:32:33]} {[%emt 00:00:08]} 9. Qc2
{[%clk 01:23:07]} {[%emt 00:05:47]} Nbd7 {[%clk 01:26:13]} {[%emt 00:06:50]} 10.
cxd5 {[%clk 01:21:56]} {[%emt 00:01:41]} exd5 {[%clk 01:26:41]} {[%emt
00:00:02]} 11. Bd3 {[%clk 01:22:09]} {[%emt 00:00:17]} c6 {[%clk 01:27:02]}
{[%emt 00:00:10]} 12. O-O {[%clk 01:21:49]} {[%emt 00:00:49]} Re8 {[%clk
01:27:05]} {[%emt 00:00:28]} 13. Nd2 {[%clk 01:14:25]} {[%emt 00:07:53]} Nb6
{[%clk 01:23:18]} {[%emt 00:04:17]} 14. Rce1 {[%clk 01:02:34]} {[%emt
00:12:21]} Be6 {[%clk 01:17:59]} {[%emt 00:05:49]} 15. f3 {[%clk 00:50:39]}
{[%emt 00:12:26]} Qd6 {[%clk 01:03:40]} {[%emt 00:14:50]} 16. Nb3 {[%clk
00:45:58]} {[%emt 00:05:10]} Re7 {[%clk 01:02:47]} {[%emt 00:01:23]} 17. Qf2
{[%clk 00:39:02]} {[%emt 00:07:25]} Rae8 {[%clk 00:51:34]} {[%emt 00:11:44]} 18.
h3 {[%clk 00:16:31]} {[%emt 00:23:01]} Nh5 {[%clk 00:41:59]} {[%emt 00:10:06]}
19. e4 {[%clk 00:08:45]} {[%emt 00:08:15]} Nf4 {[%clk 00:18:36]} {[%emt
00:23:53]} 20. Bc2 {[%clk 00:01:49]} {[%emt 00:07:26]} Bxh3 {[%clk 00:14:01]}
{[%emt 00:05:05]} 21. e5 {[%clk 00:02:02]} {[%emt 00:00:17]} Qd7 {[%clk
00:13:59]} {[%emt 00:00:31]} 22. Nc5 {[%clk 00:02:12]} {[%emt 00:00:20]} Qc8
{[%clk 00:14:18]} {[%emt 00:00:11]} 23. Qg3 {[%clk 00:01:57]} {[%emt 00:00:46]}
Nxg2 {[%clk 00:10:43]} {[%emt 00:04:05]} 24. Re2 {[%clk 00:02:23]} {[%emt
00:00:03]} Nc4 {[%clk 00:10:49]} {[%emt 00:00:24]} 25. Rxg2 {[%clk 00:01:53]}
{[%emt 00:01:00]} Bxg2 {[%clk 00:11:13]} {[%emt 00:00:06]} 26. Qxg2 {[%clk
00:02:21]} {[%emt 00:00:02]} Ne3 {[%clk 00:09:14]} {[%emt 00:02:29]} 27. Qe2
{[%clk 00:02:40]} {[%emt 00:00:11]} Nxf1 {[%clk 00:09:34]} {[%emt 00:00:10]} 28.
Qxf1 {[%clk 00:03:05]} {[%emt 00:00:04]} b6 {[%clk 00:09:09]} {[%emt 00:00:56]}
29. Nd3 {[%clk 00:03:25]} {[%emt 00:00:10]} Qf5 {[%clk 00:08:46]} {[%emt
00:00:53]} 30. Nb4 {[%clk 00:00:51]} {[%emt 00:03:04]} Qg5+ {[%clk 00:08:43]}
{[%emt 00:00:34]} 31. Qg2 {[%clk 00:00:38]} {[%emt 00:00:43]} Qxg2+ {[%clk
00:07:37]} {[%emt 00:01:35]} 32. Kxg2 {[%clk 00:01:06]} {[%emt 00:00:03]} c5
{[%clk 00:08:01]} {[%emt 00:00:07]} 33. Nbxd5 {[%clk 00:01:00]} {[%emt
00:00:36]} cxd4 {[%clk 00:08:19]} {[%emt 00:00:12]} 34. Nxe7+ {[%clk 00:01:03]}
{[%emt 00:00:26]} Rxe7 {[%clk 00:08:43]} {[%emt 00:00:06]} 35. Nb5 {[%clk
00:00:56]} {[%emt 00:00:37]} Rxe5 {[%clk 00:09:11]} {[%emt 00:00:02]} 36. Nxd4
{[%clk 00:01:07]} {[%emt 00:00:19]} Rd5 {[%clk 00:09:39]} {[%emt 00:00:02]} 37.
Nb3 {[%clk 00:01:32]} {[%emt 00:00:05]} f5 {[%clk 00:09:38]} {[%emt 00:00:30]}
38. Na1 {[%clk 00:00:33]} {[%emt 00:01:30]} Rd2+ {[%clk 00:09:05]} {[%emt
00:01:02]} 39. Kg3 {[%clk 00:00:56]} {[%emt 00:00:07]} g6 {[%clk 00:06:36]}
{[%emt 00:02:59]} 40. Bb3+ {[%clk 00:00:35]} {[%emt 00:00:51]} Kg7 {[%clk
00:06:59]} {[%emt 00:00:07]} 41. Nc2 {[%clk 00:00:58]} {[%emt 00:00:07]} g5
{[%clk 00:06:54]} {[%emt 00:00:34]} 42. Nb4 {[%clk 00:22:36]} {[%emt 00:08:53]}
Rxb2 {[%clk 00:36:42]} {[%emt 00:00:42]} 43. Nc6 {[%clk 00:22:50]} {[%emt
00:00:17]} f4+ {[%clk 00:33:21]} {[%emt 00:03:51]} 44. Kh3 {[%clk 00:21:12]}
{[%emt 00:02:07]} Rf2 {[%clk 00:33:13]} {[%emt 00:00:38]} 45. Bd5 {[%clk
00:16:05]} {[%emt 00:05:37]} Kf6 {[%clk 00:33:05]} {[%emt 00:00:38]} 46. a4
{[%clk 00:15:17]} {[%emt 00:01:18]} a5 {[%clk 00:32:28]} {[%emt 00:01:07]} 47.
Na7 {[%clk 00:14:16]} {[%emt 00:01:32]} Ke5 {[%clk 00:32:28]} {[%emt 00:00:31]}
48. Ba8 {[%clk 00:13:36]} {[%emt 00:01:09]} Ra2 {[%clk 00:30:54]} {[%emt
00:02:03]} 49. Bc6 {[%clk 00:13:57]} {[%emt 00:00:10]} Rc2 {[%clk 00:29:56]}
{[%emt 00:01:28]} 50. Be8 {[%clk 00:13:52]} {[%emt 00:00:34]} Rc7 {[%clk
00:28:09]} {[%emt 00:02:16]} 51. Nb5 {[%clk 00:11:24]} {[%emt 00:02:59]} Rc1
{[%clk 00:28:10]} {[%emt 00:00:29]} 52. Na7 {[%clk 00:10:51]} {[%emt 00:01:04]}
Kd5 {[%clk 00:22:23]} {[%emt 00:06:16]} 53. Nb5 {[%clk 00:10:38]} {[%emt
00:00:43]} Rc2 {[%clk 00:20:55]} {[%emt 00:01:58]} 54. Bg6 {[%clk 00:10:34]}
{[%emt 00:00:34]} Rf2 {[%clk 00:21:23]} {[%emt 00:00:02]} 55. Kg4 {[%clk
00:07:38]} {[%emt 00:03:27]} Ke5 {[%clk 00:21:08]} {[%emt 00:00:45]} 0-1

[Event "Chess Festival Groningen 2023 | A"]
[Site "Groningen, Netherlands"]
[Date "2023.12.23"]
[Round "3.14"]
[White "Jin, Yueheng"]
[Black "Grooten, Herman"]
[Result "1-0"]
[TimeControl "90min/40moves + 30min + 30sec/move"]
[WhiteElo "2398"]
[BlackElo "2243"]

1. d4 {[%clk 01:30:57]} {[%emt 00:00:02]} Nf6 {[%clk 01:30:54]} {[%emt
00:00:06]} 2. c4 {[%clk 01:31:24]} {[%emt 00:00:03]} e6 {[%clk 01:31:11]}
{[%emt 00:00:12]} 3. g3 {[%clk 01:31:48]} {[%emt 00:00:07]} c5 {[%clk
01:31:16]} {[%emt 00:00:25]} 4. d5 {[%clk 01:32:16]} {[%emt 00:00:03]} exd5
{[%clk 01:31:29]} {[%emt 00:00:16]} 5. cxd5 {[%clk 01:32:43]} {[%emt 00:00:03]}
d6 {[%clk 01:31:44]} {[%emt 00:00:15]} 6. Nc3 {[%clk 01:33:09]} {[%emt
00:00:04]} g6 {[%clk 01:32:04]} {[%emt 00:00:09]} 7. Nf3 {[%clk 01:33:32]}
{[%emt 00:00:09]} Bg7 {[%clk 01:32:14]} {[%emt 00:00:19]} 8. Bg2 {[%clk
01:33:59]} {[%emt 00:00:04]} O-O {[%clk 01:32:34]} {[%emt 00:00:09]} 9. O-O
{[%clk 01:34:23]} {[%emt 00:00:06]} Re8 {[%clk 01:32:46]} {[%emt 00:00:17]} 10.
Re1 {[%clk 01:34:50]} {[%emt 00:00:04]} a6 {[%clk 01:32:18]} {[%emt 00:00:58]}
11. a4 {[%clk 01:35:16]} {[%emt 00:00:05]} Nbd7 {[%clk 01:29:59]} {[%emt
00:02:47]} 12. Bf4 {[%clk 01:35:32]} {[%emt 00:00:14]} Nh5 {[%clk 01:24:56]}
{[%emt 00:05:34]} 13. Bg5 {[%clk 01:33:33]} {[%emt 00:02:29]} Qc7 {[%clk
01:22:28]} {[%emt 00:02:56]} 14. e4 {[%clk 01:31:50]} {[%emt 00:02:14]} Rb8
{[%clk 01:22:16]} {[%emt 00:00:41]} 15. a5 {[%clk 01:16:30]} {[%emt 00:15:52]}
b5 {[%clk 01:17:20]} {[%emt 00:05:25]} 16. axb6 {[%clk 01:16:42]} {[%emt
00:00:19]} Rxb6 {[%clk 01:17:28]} {[%emt 00:00:21]} 17. Qc2 {[%clk 01:16:36]}
{[%emt 00:00:37]} Ne5 {[%clk 01:10:24]} {[%emt 00:07:34]} 18. Nxe5 {[%clk
01:14:02]} {[%emt 00:03:04]} Bxe5 {[%clk 01:10:36]} {[%emt 00:00:17]} 19. Be3
{[%clk 01:13:02]} {[%emt 00:01:30]} Bd7 {[%clk 01:07:20]} {[%emt 00:03:45]} 20.
Ra2 {[%clk 01:09:09]} {[%emt 00:04:24]} Reb8 {[%clk 01:04:54]} {[%emt
00:02:56]} 21. Bf1 {[%clk 01:03:18]} {[%emt 00:06:22]} f5 {[%clk 00:55:42]}
{[%emt 00:09:41]} 22. exf5 {[%clk 00:59:53]} {[%emt 00:03:55]} Bxf5 {[%clk
00:55:17]} {[%emt 00:00:55]} 23. Qc1 {[%clk 00:55:41]} {[%emt 00:04:43]} a5
{[%clk 00:49:14]} {[%emt 00:06:33]} 24. Na4 {[%clk 00:44:11]} {[%emt 00:11:59]}
R6b7 {[%clk 00:47:29]} {[%emt 00:02:15]} 25. Bc4 {[%clk 00:36:35]} {[%emt
00:08:06]} Nf6 {[%clk 00:38:53]} {[%emt 00:09:06]} 26. Nxc5 {[%clk 00:18:34]}
{[%emt 00:18:32]} Bxb2 {[%clk 00:30:16]} {[%emt 00:09:06]} 27. Rxb2 {[%clk
00:17:38]} {[%emt 00:01:27]} Rxb2 {[%clk 00:30:33]} {[%emt 00:00:13]} 28. Na6
{[%clk 00:17:55]} {[%emt 00:00:14]} Qf7 {[%clk 00:24:30]} {[%emt 00:06:32]} 29.
Nxb8 {[%clk 00:17:59]} {[%emt 00:00:26]} Rc2 {[%clk 00:20:45]} {[%emt
00:04:15]} 30. Qa3 {[%clk 00:17:20]} {[%emt 00:01:10]} Rxc4 {[%clk 00:20:40]}
{[%emt 00:00:34]} 31. Qxd6 {[%clk 00:16:48]} {[%emt 00:01:02]} Ne8 {[%clk
00:15:48]} {[%emt 00:05:22]} 32. Qa3 {[%clk 00:13:10]} {[%emt 00:04:08]} Qxd5
{[%clk 00:08:16]} {[%emt 00:08:03]} 33. Bh6 {[%clk 00:13:03]} {[%emt 00:00:37]}
Nd6 {[%clk 00:08:39]} {[%emt 00:00:07]} 34. Qa1 {[%clk 00:07:28]} {[%emt
00:06:04]} Qd4 {[%clk 00:06:36]} {[%emt 00:02:33]} 35. Qxa5 {[%clk 00:07:21]}
{[%emt 00:00:38]} Ne4 {[%clk 00:04:16]} {[%emt 00:02:49]} 36. Be3 {[%clk
00:05:21]} {[%emt 00:02:31]} Qd6 {[%clk 00:04:05]} {[%emt 00:00:40]} 37. Qb5
{[%clk 00:04:10]} {[%emt 00:01:41]} Rc8 {[%clk 00:04:09]} {[%emt 00:00:26]} 38.
Bf4 {[%clk 00:04:26]} {[%emt 00:00:14]} Qc5 {[%clk 00:03:41]} {[%emt 00:00:58]}
39. Qb3+ {[%clk 00:04:22]} {[%emt 00:00:34]} Qc4 {[%clk 00:03:56]} {[%emt
00:00:15]} 40. Qb7 {[%clk 00:03:14]} {[%emt 00:01:39]} Qd4 {[%clk 00:01:16]}
{[%emt 00:03:09]} 41. Rf1 {[%clk 00:00:34]} {[%emt 00:03:10]} Nc5 {[%clk
00:28:02]} {[%emt 00:03:44]} 42. Qe7 {[%clk 00:27:18]} {[%emt 00:03:46]} Nd3
{[%clk 00:25:55]} {[%emt 00:02:36]} 43. Nc6 {[%clk 00:25:34]} {[%emt 00:02:14]}
Qg7 {[%clk 00:23:01]} {[%emt 00:03:23]} 44. Be3 {[%clk 00:15:38]} {[%emt
00:10:27]} Bd7 {[%clk 00:19:31]} {[%emt 00:03:59]} 45. Rd1 {[%clk 00:07:34]}
{[%emt 00:08:35]} Re8 {[%clk 00:12:54]} {[%emt 00:07:07]} 46. Qd6 {[%emt
00:03:56]} Re6 {[%clk 00:11:02]} 47. Qd5 {[%clk 00:06:21]} {[%emt 00:00:39]}
Nb2 {[%clk 00:04:33]} {[%emt 00:06:59]} 48. Rd4 {[%clk 00:06:45]} {[%emt
00:00:06]} Qf7 {[%clk 00:04:03]} {[%emt 00:01:00]} 49. Nd8 {[%clk 00:06:56]}
{[%emt 00:00:19]} 1-0